fUST/lending_fUST_20260622
["ID","MTS","AMOUNT","RATE_DAILY","PERIOD"]
[426068854,1782136243000,-500.0,0.00018283,2]
[426068859,1782136243000,-500.0,0.00018283,2]
[426068862,1782136243000,-500.0,0.00018283,2]
[426068858,1782136243000,-500.0,0.00018283,2]
[426068857,1782136243000,-500.0,0.00018283,2]
[426068860,1782136243000,-500.0,0.00018283,2]
[426068866,1782136243000,-500.0,0.00018283,2]
[426068864,1782136243000,-500.0,0.00018283,2]
[426068863,1782136243000,-500.0,0.00018283,2]
[426068902,1782136243000,-500.0,0.00018283,2]
[426068869,1782136243000,-351.02318421,0.00018283,2]
[426068870,1782136243000,-500.0,0.00018283,2]
[426068871,1782136243000,-500.0,0.00018283,2]
[426068874,1782136243000,-500.0,0.00018283,2]
[426068876,1782136243000,-500.0,0.00018283,2]
[426068913,1782136243000,-500.0,0.00018557,2]
[426068885,1782136243000,-500.0,0.00018283,2]
[426068907,1782136243000,-186.0,0.00018284,2]
[426068942,1782136243000,-500.0,0.00018993,2]
[426068943,1782136243000,-500.0,0.00018993,2]
[426068944,1782136243000,-500.0,0.00018993,2]
[426068945,1782136243000,-500.0,0.00018993,2]
[426068946,1782136243000,-500.0,0.00018993,2]
[426068947,1782136243000,-500.0,0.00018993,2]
[426068940,1782136243000,-500.0,0.00018993,2]
[426068950,1782136243000,-151.0,0.00019,2]
[426068948,1782136243000,-189.624,0.00018999,2]
[426068949,1782136243000,-650.0,0.00019,2]
[426068951,1782136243000,-316.901975,0.00019,2]
[426068953,1782136243000,-316.901975,0.00019,2]
[426068963,1782136243000,-500.0,0.00019267,2]
[426068941,1782136243000,-500.0,0.00018993,2]
[426068964,1782136243000,-500.0,0.00019267,2]
[426068959,1782136243000,-500.0,0.00019209,2]
[426068956,1782136243000,-465.48911171,0.00019105,2]
[426068957,1782136243000,-500.0,0.00019105,2]
[426068952,1782136243000,-316.901975,0.00019,2]
[426068958,1782136243000,-500.0,0.00019209,2]
[426068955,1782136243000,-500.0,0.00019105,2]
[426068960,1782136243000,-500.0,0.00019267,2]
[426068962,1782136243000,-500.0,0.00019267,2]
[426068961,1782136243000,-500.0,0.00019267,2]
[426068967,1782136243000,-500.0,0.00019267,2]
[426068965,1782136243000,-500.0,0.00019267,2]
[426068966,1782136243000,-500.0,0.00019267,2]
[426068905,1782136243000,-500.0,0.00018283,2]
[426068954,1782136243000,-316.901975,0.00019,2]
[426068939,1782136243000,-500.0,0.00018993,2]
[426068968,1782136243000,-500.0,0.00019267,2]
[426068936,1782136243000,-500.0,0.00018993,2]
[426068931,1782136243000,-500.0,0.00018831,2]
[426068909,1782136243000,-500.0,0.00018387,2]
[426068911,1782136243000,-152.08295118,0.00018504,2]
[426068910,1782136243000,-178.0,0.00018493,3]
[426068908,1782136243000,-500.0,0.00018387,2]
[426068914,1782136243000,-500.0,0.00018557,2]
[426068915,1782136243000,-500.0,0.00018661,2]
[426068926,1782136243000,-500.0,0.00018719,2]
[426068923,1782136243000,-500.0,0.00018719,2]
[426068916,1782136243000,-500.0,0.00018661,2]
[426068924,1782136243000,-500.0,0.00018719,2]
[426068925,1782136243000,-500.0,0.00018719,2]
[426068921,1782136243000,-500.0,0.00018719,2]
[426068918,1782136243000,-500.0,0.00018719,2]
[426068912,1782136243000,-500.0,0.00018557,2]
[426068919,1782136243000,-500.0,0.00018719,2]
[426068917,1782136243000,-500.0,0.00018719,2]
[426068932,1782136243000,-500.0,0.00018831,2]
[426068935,1782136243000,-500.0,0.00018935,2]
[426068929,1782136243000,-1000.0,0.0001872,2]
[426068937,1782136243000,-500.0,0.00018993,2]
[426068934,1782136243000,-500.0,0.00018935,2]
[426068930,1782136243000,-244.0,0.0001872,2]
[426068933,1782136243000,-500.0,0.00018831,2]
[426068927,1782136243000,-500.0,0.00018719,2]
[426068938,1782136243000,-500.0,0.00018993,2]
[426068928,1782136243000,-500.0,0.00018719,2]
[426068920,1782136243000,-500.0,0.00018719,2]
[426068922,1782136243000,-500.0,0.00018719,2]
[426069006,1782136244000,-429.81287987,0.00019791,2]
[426069010,1782136244000,-221.68031802,0.000198,2]
[426069007,1782136244000,-204.09471251,0.00019791,2]
[426069009,1782136244000,-221.68031802,0.000198,2]
[426069014,1782136244000,-500.0,0.00019815,2]
[426068996,1782136244000,-500.0,0.00019653,2]
[426069016,1782136244000,-500.0,0.00019815,2]
[426069015,1782136244000,-500.0,0.00019815,2]
[426069005,1782136244000,-374.46561024,0.00019791,2]
[426068997,1782136244000,-500.0,0.00019653,2]
[426068994,1782136244000,-316.901975,0.00019541,2]
[426069008,1782136244000,-456.24885353,0.00019791,2]
[426069012,1782136244000,-500.0,0.00019815,2]
[426069017,1782136244000,-500.0,0.00019815,2]
[426069013,1782136244000,-500.0,0.00019815,2]
[426069021,1782136244000,-500.0,0.00019815,2]
[426069023,1782136244000,-500.0,0.00019815,2]
[426069020,1782136244000,-500.0,0.00019815,2]
[426069019,1782136244000,-500.0,0.00019815,2]
[426069022,1782136244000,-300.0,0.00019815,2]
[426069018,1782136244000,-500.0,0.00019815,2]
[426069027,1782136244000,-221.68031802,0.0002,2]
[426069024,1782136244000,-314.44941317,0.00019927,2]
[426069026,1782136244000,-366.0,0.0002,2]
[426069025,1782136244000,-500.0,0.00019927,2]
[426069028,1782136244000,-221.68031802,0.0002,2]
[426068998,1782136244000,-566.8,0.00019757,2]
[426069030,1782136244000,-500.0,0.00020089,2]
[426069011,1782136244000,-994.83848733,0.000198,2]
[426069002,1782136244000,-347.5882523,0.0001978,2]
[426068982,1782136244000,-500.0,0.00019541,2]
[426068999,1782136244000,-892.06271776,0.0001978,2]
[426069041,1782136244000,-500.0,0.00020089,2]
[426068974,1782136244000,-187.23280512,0.00019276,2]
[426068975,1782136244000,-304.16590235,0.00019276,2]
[426068976,1782136244000,-267.5799628,0.00019356,2]
[426068971,1782136244000,-500.0,0.00019267,2]
[426068977,1782136244000,-500.0,0.00019379,2]
[426068970,1782136244000,-500.0,0.00019267,2]
[426068972,1782136244000,-17380.1775177,0.00019273,2]
[426068973,1782136244000,-151.0,0.00019273,2]
[426068969,1782136244000,-500.0,0.00019267,2]
[426068989,1782136244000,-500.0,0.00019541,2]
[426068978,1782136244000,-500.0,0.00019379,2]
[426068990,1782136244000,-316.901975,0.00019541,2]
[426069001,1782136244000,-2005.13397386,0.0001978,2]
[426068979,1782136244000,-500.0,0.00019483,2]
[426068981,1782136244000,-500.0,0.00019541,2]
[426068984,1782136244000,-500.0,0.00019541,2]
[426068987,1782136244000,-500.0,0.00019541,2]
[426068985,1782136244000,-500.0,0.00019541,2]
[426068988,1782136244000,-500.0,0.00019541,2]
[426068983,1782136244000,-500.0,0.00019541,2]
[426068986,1782136244000,-500.0,0.00019541,2]
[426068991,1782136244000,-500.0,0.00019541,2]
[426068993,1782136244000,-316.901975,0.00019541,2]
[426069003,1782136244000,-617.93467075,0.0001978,2]
[426068992,1782136244000,-316.901975,0.00019541,2]
[426068995,1782136244000,-500.0,0.00019541,2]
[426069000,1782136244000,-501.78527874,0.0001978,2]
[426068980,1782136244000,-500.0,0.00019483,2]
[426069040,1782136244000,-500.0,0.00020089,2]
[426069004,1782136244000,-964.55740012,0.0001978,2]
[426069042,1782136244000,-153.85698318,0.00020134,2]
[426069066,1782136244000,-178.37257792,0.00020151,2]
[426069069,1782136244000,-173.50392814,0.00020151,2]
[426069072,1782136244000,-994.83848733,0.000202,2]
[426069071,1782136244000,-221.68031802,0.000202,2]
[426069077,1782136244000,-500.0,0.00020363,2]
[426069082,1782136244000,-500.0,0.00020363,2]
[426069074,1782136244000,-180.04861313,0.00020301,2]
[426069070,1782136244000,-221.68031802,0.000202,2]
[426069081,1782136244000,-500.0,0.00020363,2]
[426069073,1782136244000,-500.0,0.00020201,2]
[426069078,1782136244000,-500.0,0.00020363,2]
[426069080,1782136244000,-500.0,0.00020363,2]
[426069079,1782136244000,-500.0,0.00020363,2]
[426069065,1782136244000,-150.14918384,0.00020151,2]
[426069075,1782136244000,-500.0,0.00020363,2]
[426069084,1782136244000,-316.901975,0.00020363,2]
[426069095,1782136244000,-316.901975,0.00020599,2]
[426069083,1782136244000,-316.901975,0.00020363,2]
[426069094,1782136244000,-492.0,0.00020591,2]
[426069085,1782136244000,-500.0,0.00020363,2]
[426069086,1782136244000,-316.901975,0.00020363,2]
[426069087,1782136244000,-316.901975,0.00020363,2]
[426069092,1782136244000,-500.0,0.00020475,2]
[426069088,1782136244000,-500.0,0.00020363,2]
[426069090,1782136244000,-221.68031802,0.000204,2]
[426069089,1782136244000,-221.68031802,0.000204,2]
[426069093,1782136244000,-1000.0,0.00020591,2]
[426069096,1782136244000,-316.901975,0.00020599,2]
[426069076,1782136244000,-500.0,0.00020363,2]
[426069064,1782136244000,-193.61655375,0.00020151,2]
[426069091,1782136244000,-994.83848733,0.000204,2]
[426069061,1782136244000,-161.869636,0.00020151,2]
[426069062,1782136244000,-156.20894829,0.00020151,2]
[426069031,1782136244000,-500.0,0.00020089,2]
[426069036,1782136244000,-500.0,0.00020089,2]
[426069033,1782136244000,-500.0,0.00020089,2]
[426069032,1782136244000,-500.0,0.00020089,2]
[426069039,1782136244000,-500.0,0.00020089,2]
[426069034,1782136244000,-500.0,0.00020089,2]
[426069038,1782136244000,-500.0,0.00020089,2]
[426069044,1782136244000,-190.79810494,0.00020134,2]
[426069052,1782136244000,-164.21901802,0.00020134,2]
[426069045,1782136244000,-338.00677106,0.00020134,2]
[426069054,1782136244000,-185.19683367,0.00020134,2]
[426069053,1782136244000,-155.90935625,0.00020134,2]
[426069043,1782136244000,-319.90361806,0.00020134,2]
[426069055,1782136244000,-156.79095007,0.00020134,2]
[426069029,1782136244000,-994.83848733,0.0002,2]
[426069051,1782136244000,-165.12638226,0.00020134,2]
[426069046,1782136244000,-155.98260647,0.00020134,2]
[426069060,1782136244000,-608.33180471,0.00020151,2]
[426069059,1782136244000,-408.18942502,0.00020151,2]
[426069068,1782136244000,-158.53937091,0.00020151,2]
[426069097,1782136244000,-316.901975,0.00020599,2]
[426069056,1782136244000,-177.10154629,0.00020134,2]
[426069063,1782136244000,-368.49375376,0.00020151,2]
[426069057,1782136244000,-170.72016905,0.00020134,2]
[426069067,1782136244000,-161.17034746,0.00020151,2]
[426069049,1782136244000,-214.90643993,0.00020134,2]
[426069050,1782136244000,-152.92123644,0.00020134,2]
[426069048,1782136244000,-152.5333304,0.00020134,2]
[426069047,1782136244000,-192.25107077,0.00020134,2]
[426069058,1782136244000,-367.43205181,0.00020134,2]
[426069126,1782136245000,-500.0,0.00020911,2]
[426069137,1782136245000,-166.0,0.00020951,2]
[426069128,1782136245000,-190.33436447,0.00020911,2]
[426069132,1782136245000,-500.0,0.00020911,2]
[426069133,1782136245000,-160.0,0.00020913,2]
[426069134,1782136245000,-170.659464,0.00020913,2]
[426069140,1782136245000,-155.02774456,0.00020951,2]
[426069142,1782136245000,-500.0,0.00020995,2]
[426069143,1782136245000,-508.59231343,0.00020995,2]
[426069138,1782136245000,-157.0,0.00020951,2]
[426069136,1782136245000,-166.0,0.00020951,2]
[426069135,1782136245000,-181.318929,0.00020913,2]
[426069150,1782136245000,-500.0,0.00020997,2]
[426069139,1782136245000,-157.0,0.00020951,2]
[426069145,1782136245000,-153.100402,0.00020996,2]
[426069155,1782136245000,-500.0,0.00020998,2]
[426069156,1782136245000,-500.0,0.00020998,2]
[426069144,1782136245000,-151.0,0.00020996,2]
[426069127,1782136245000,-500.0,0.00020911,2]
[426069146,1782136245000,-500.0,0.00020997,2]
[426069147,1782136245000,-500.0,0.00020997,2]
[426069148,1782136245000,-500.0,0.00020997,2]
[426069153,1782136245000,-500.0,0.00020997,2]
[426069149,1782136245000,-500.0,0.00020997,2]
[426069151,1782136245000,-505.3,0.00020997,2]
[426069154,1782136245000,-500.0,0.00020997,2]
[426069152,1782136245000,-500.0,0.00020997,2]
[426069141,1782136245000,-507.78591421,0.00020995,2]
[426069131,1782136245000,-500.0,0.00020911,2]
[426069119,1782136245000,-500.0,0.00020749,2]
[426069130,1782136245000,-500.0,0.00020911,2]
[426069157,1782136245000,-500.0,0.00020998,2]
[426069107,1782136245000,-500.0,0.00020637,2]
[426069106,1782136245000,-603.01716958,0.00020614,2]
[426069103,1782136245000,-151.0,0.000206,2]
[426069101,1782136245000,-994.83848733,0.000206,2]
[426069099,1782136245000,-221.68031802,0.000206,2]
[426069104,1782136245000,-151.0,0.000206,2]
[426069100,1782136245000,-221.68031802,0.000206,2]
[426069098,1782136245000,-316.901975,0.00020599,2]
[426069102,1782136245000,-151.0,0.000206,2]
[426069108,1782136245000,-500.0,0.00020637,2]
[426069105,1782136245000,-151.0,0.000206,2]
[426069110,1782136245000,-500.0,0.00020637,2]
[426069109,1782136245000,-500.0,0.00020637,2]
[426069120,1782136245000,-272.63796923,0.00020821,2]
[426069112,1782136245000,-500.0,0.00020637,2]
[426069121,1782136245000,-484.68972307,0.00020821,2]
[426069113,1782136245000,-500.0,0.00020637,2]
[426069115,1782136245000,-500.0,0.00020637,2]
[426069118,1782136245000,-3625.17155212,0.00020653,2]
[426069114,1782136245000,-500.0,0.00020637,2]
[426069117,1782136245000,-177.0049695,0.00020644,2]
[426069116,1782136245000,-500.0,0.00020637,2]
[426069122,1782136245000,-756.57036461,0.00020821,2]
[426069123,1782136245000,-500.0,0.00020911,2]
[426069124,1782136245000,-500.0,0.00020911,2]
[426069129,1782136245000,-500.0,0.00020911,2]
[426069125,1782136245000,-500.0,0.00020911,2]
[426069111,1782136245000,-500.0,0.00020637,2]
[426069159,1782136245000,-500.0,0.00020998,2]
[426069160,1782136245000,-500.0,0.00020998,2]
[426069187,1782136245000,-500.0,0.00021185,2]
[426069188,1782136245000,-171.061835,0.00021262,2]
[426069206,1782136245000,-158.0,0.00021437,30]
[426069195,1782136245000,-500.0,0.00021271,2]
[426069196,1782136245000,-505.3,0.00021271,2]
[426069200,1782136245000,-440.65916803,0.00021272,2]
[426069199,1782136245000,-500.0,0.00021271,2]
[426069201,1782136245000,-500.0,0.00021272,2]
[426069204,1782136245000,-958.0,0.00021284,2]
[426069197,1782136245000,-500.0,0.00021271,2]
[426069203,1782136245000,-500.0,0.00021272,2]
[426069198,1782136245000,-500.0,0.00021271,2]
[426069202,1782136245000,-500.0,0.00021272,2]
[426069190,1782136245000,-500.0,0.00021269,2]
[426069208,1782136245000,-366.0,0.00021437,30]
[426069209,1782136245000,-154.0,0.00021448,30]
[426069220,1782136245000,-505.3,0.00021545,2]
[426069210,1782136245000,-500.0,0.00021459,2]
[426069221,1782136245000,-500.0,0.00021545,2]
[426069222,1782136245000,-500.0,0.00021545,2]
[426069211,1782136245000,-185.38,0.00021488,3]
[426069223,1782136245000,-500.0,0.00021545,2]
[426069215,1782136245000,-500.0,0.00021545,2]
[426069217,1782136245000,-264.16794232,0.00021545,2]
[426069212,1782136245000,-556.14,0.00021488,3]
[426069213,1782136245000,-472.98887531,0.00021533,2]
[426069214,1782136245000,-500.0,0.00021545,2]
[426069162,1782136245000,-503.57069799,0.00020998,2]
[426069219,1782136245000,-500.0,0.00021545,2]
[426069191,1782136245000,-518.30753538,0.00021271,2]
[426069205,1782136245000,-186.0,0.00021284,2]
[426069193,1782136245000,-500.0,0.00021271,2]
[426069194,1782136245000,-500.0,0.00021271,2]
[426069168,1782136245000,-262.42,0.00020998,2]
[426069158,1782136245000,-500.0,0.00020998,2]
[426069165,1782136245000,-500.0,0.00020998,2]
[426069167,1782136245000,-203.85,0.00020998,2]
[426069164,1782136245000,-500.0,0.00020998,2]
[426069169,1782136245000,-500.0,0.00020998,2]
[426069161,1782136245000,-500.0,0.00020998,2]
[426069163,1782136245000,-500.0,0.00020998,2]
[426069171,1782136245000,-316.901975,0.00020998,2]
[426069170,1782136245000,-316.901975,0.00020998,2]
[426069181,1782136245000,-151.0,0.00021185,2]
[426069173,1782136245000,-316.901983,0.00020998,2]
[426069178,1782136245000,-500.0,0.00021185,2]
[426069166,1782136245000,-284.15178564,0.00020998,2]
[426069192,1782136245000,-500.0,0.00021271,2]
[426069174,1782136245000,-366.0,0.00021,2]
[426069189,1782136245000,-160.0,0.00021267,2]
[426069186,1782136245000,-500.0,0.00021185,2]
[426069183,1782136245000,-151.0,0.00021185,2]
[426069185,1782136245000,-500.0,0.00021185,2]
[426069182,1782136245000,-151.0,0.00021185,2]
[426069184,1782136245000,-151.0,0.00021185,2]
[426069180,1782136245000,-500.0,0.00021185,2]
[426069176,1782136245000,-500.0,0.00021185,2]
[426069175,1782136245000,-500.0,0.00021185,2]
[426069177,1782136245000,-500.0,0.00021185,2]
[426069172,1782136245000,-316.901975,0.00020998,2]
[426069179,1782136245000,-500.0,0.00021185,2]
[426069265,1782136246000,-162.380719,0.00021702,2]
[426069276,1782136246000,-3351.5,0.00021869,2]
[426069267,1782136246000,-648.8,0.00021733,2]
[426069266,1782136246000,-159.18814677,0.00021702,2]
[426069269,1782136246000,-500.0,0.00021819,2]
[426069264,1782136246000,-244.81061878,0.00021702,2]
[426069254,1782136246000,-151.0,0.00021597,2]
[426069256,1782136246000,-500.0,0.00021597,2]
[426069255,1782136246000,-500.0,0.00021597,2]
[426069260,1782136246000,-500.0,0.00021597,2]
[426069258,1782136246000,-468.51661088,0.00021597,2]
[426069273,1782136246000,-500.0,0.00021819,2]
[426069257,1782136246000,-538.15,0.00021597,2]
[426069259,1782136246000,-525.82,0.00021597,2]
[426069275,1782136246000,-280.92057806,0.0002182,2]
[426069278,1782136246000,-500.0,0.00021871,2]
[426069274,1782136246000,-500.0,0.00021819,2]
[426069271,1782136246000,-505.3,0.00021819,2]
[426069270,1782136246000,-500.0,0.00021819,2]
[426069272,1782136246000,-500.0,0.00021819,2]
[426069288,1782136246000,-276.19604074,0.00021871,2]
[426069277,1782136246000,-500.0,0.00021869,2]
[426069279,1782136246000,-500.0,0.00021871,2]
[426069280,1782136246000,-500.0,0.00021871,2]
[426069281,1782136246000,-500.0,0.00021871,2]
[426069282,1782136246000,-500.0,0.00021871,2]
[426069283,1782136246000,-500.0,0.00021871,2]
[426069287,1782136246000,-151.0,0.00021871,2]
[426069284,1782136246000,-500.0,0.00021871,2]
[426069268,1782136246000,-500.0,0.00021819,2]
[426069263,1782136246000,-500.0,0.00021597,2]
[426069237,1782136246000,-528.44909834,0.00021597,2]
[426069253,1782136246000,-151.0,0.00021597,2]
[426069285,1782136246000,-151.0,0.00021871,2]
[426069224,1782136246000,-500.0,0.00021546,2]
[426069235,1782136246000,-500.0,0.00021597,2]
[426069230,1782136246000,-500.0,0.00021595,2]
[426069229,1782136246000,-3351.5,0.00021595,2]
[426069233,1782136246000,-500.0,0.00021597,2]
[426069227,1782136246000,-246.0,0.00021595,2]
[426069232,1782136246000,-500.0,0.00021597,2]
[426069231,1782136246000,-1000.0,0.00021596,2]
[426069236,1782136246000,-500.0,0.00021597,2]
[426069228,1782136246000,-151.126123,0.00021595,2]
[426069226,1782136246000,-151.0,0.00021595,2]
[426069234,1782136246000,-500.0,0.00021597,2]
[426069238,1782136246000,-525.11149546,0.00021597,2]
[426069241,1782136246000,-500.0,0.00021597,2]
[426069248,1782136246000,-500.0,0.00021597,2]
[426069243,1782136246000,-500.0,0.00021597,2]
[426069240,1782136246000,-500.0,0.00021597,2]
[426069245,1782136246000,-249.76741921,0.00021597,2]
[426069247,1782136246000,-500.0,0.00021597,2]
[426069244,1782136246000,-500.0,0.00021597,2]
[426069239,1782136246000,-500.0,0.00021597,2]
[426069249,1782136246000,-500.0,0.00021597,2]
[426069242,1782136246000,-500.0,0.00021597,2]
[426069246,1782136246000,-500.0,0.00021597,2]
[426069250,1782136246000,-500.0,0.00021597,2]
[426069251,1782136246000,-151.0,0.00021597,2]
[426069261,1782136246000,-501.30559069,0.00021597,2]
[426069252,1782136246000,-151.0,0.00021597,2]
[426069262,1782136246000,-500.0,0.00021597,2]
[426069286,1782136246000,-151.0,0.00021871,2]
[426069314,1782136246000,-500.0,0.00022093,2]
[426069291,1782136246000,-500.0,0.00021871,2]
[426069337,1782136246000,-500.0,0.00022145,2]
[426069344,1782136246000,-500.0,0.00022145,2]
[426069340,1782136246000,-500.0,0.00022145,2]
[426069342,1782136246000,-500.0,0.00022145,2]
[426069348,1782136246000,-159.9019422,0.00022212,2]
[426069352,1782136246000,-244.81061878,0.0002225,2]
[426069358,1782136246000,-500.0,0.00022367,2]
[426069354,1782136246000,-197.96525807,0.0002225,2]
[426069356,1782136246000,-500.0,0.00022367,2]
[426069350,1782136246000,-10042.8391587,0.00022212,2]
[426069361,1782136246000,-505.3,0.00022367,2]
[426069360,1782136246000,-500.0,0.00022367,2]
[426069366,1782136246000,-500.0,0.00022367,2]
[426069363,1782136246000,-297.95735043,0.00022367,2]
[426069368,1782136246000,-3351.5,0.00022417,2]
[426069365,1782136246000,-500.0,0.00022367,2]
[426069373,1782136246000,-500.0,0.00022419,2]
[426069372,1782136246000,-500.0,0.00022419,2]
[426069377,1782136246000,-1000.0,0.00022419,2]
[426069371,1782136246000,-500.0,0.00022419,2]
[426069379,1782136246000,-500.0,0.00022419,2]
[426069378,1782136246000,-515.99635046,0.00022419,2]
[426069375,1782136246000,-500.0,0.00022419,2]
[426069380,1782136246000,-500.0,0.00022419,2]
[426069383,1782136246000,-158.0,0.00022437,30]
[426069384,1782136246000,-366.0,0.00022437,30]
[426069381,1782136246000,-500.0,0.00022419,2]
[426069385,1782136246000,-213.667589,0.00022442,14]
[426069289,1782136246000,-500.0,0.00021871,2]
[426069333,1782136246000,-1000.0,0.00022145,2]
[426069346,1782136246000,-439.0,0.00022192,7]
[426069370,1782136246000,-500.0,0.00022417,2]
[426069335,1782136246000,-487.90746068,0.00022145,2]
[426069338,1782136246000,-500.0,0.00022145,2]
[426069294,1782136246000,-705.94702301,0.00021917,2]
[426069292,1782136246000,-225.37682836,0.00021879,2]
[426069290,1782136246000,-500.0,0.00021871,2]
[426069300,1782136246000,-386400.0,0.00022,4]
[426069293,1782136246000,-397.09520044,0.00021917,2]
[426069298,1782136246000,-1000.0,0.00021917,2]
[426069302,1782136246000,-151.0,0.00022,2]
[426069295,1782136246000,-1103.04222345,0.00021917,2]
[426069296,1782136246000,-231.56411471,0.00021917,2]
[426069297,1782136246000,-1000.0,0.00021917,2]
[426069301,1782136246000,-366.0,0.00022,2]
[426069320,1782136246000,-500.0,0.00022093,2]
[426069322,1782136246000,-3351.5,0.00022143,2]
[426069307,1782136246000,-487.0,0.00022,2]
[426069299,1782136246000,-204.791357,0.00021959,14]
[426069325,1782136246000,-500.0,0.00022145,2]
[426069318,1782136246000,-500.0,0.00022093,2]
[426069329,1782136246000,-500.0,0.00022145,2]
[426069327,1782136246000,-500.0,0.00022145,2]
[426069323,1782136246000,-500.0,0.00022143,2]
[426069310,1782136246000,-500.0,0.00022093,2]
[426069308,1782136246000,-659.41,0.00022,2]
[426069331,1782136246000,-500.0,0.00022145,2]
[426069316,1782136246000,-505.3,0.00022093,2]
[426069304,1782136246000,-151.0,0.00022,2]
[426069303,1782136246000,-151.0,0.00022,2]
[426069312,1782136246000,-500.0,0.00022093,2]
[426069305,1782136246000,-439.0,0.00022,2]
[426069382,1782136246000,-500.0,0.00022419,2]
[426069321,1782136246000,-500.0,0.00022093,2]
[426069423,1782136247000,-168.0,0.00022873,120]
[426069413,1782136247000,-500.0,0.00022693,2]
[426069407,1782136247000,-500.0,0.00022693,2]
[426069424,1782136247000,-158.0,0.00022873,120]
[426069412,1782136247000,-500.0,0.00022693,2]
[426069405,1782136247000,-500.0,0.00022693,2]
[426069404,1782136247000,-500.0,0.00022691,2]
[426069415,1782136247000,-244.81061878,0.00022798,2]
[426069421,1782136247000,-1056.6303782,0.0002287,30]
[426069422,1782136247000,-160.0,0.00022873,120]
[426069414,1782136247000,-173.0,0.00022788,120]
[426069417,1782136247000,-417.15472785,0.00022829,2]
[426069420,1782136247000,-370.76,0.00022858,3]
[426069416,1782136247000,-1074.461705,0.000228,2]
[426069402,1782136247000,-3351.5,0.00022691,2]
[426069418,1782136247000,-160.0,0.00022829,2]
[426069410,1782136247000,-500.0,0.00022693,2]
[426069388,1782136247000,-170.0,0.00022614,120]
[426069408,1782136247000,-500.0,0.00022693,2]
[426069427,1782136247000,-163.0,0.00022877,8]
[426069386,1782136247000,-154.0,0.00022448,30]
[426069392,1782136247000,-500.0,0.00022641,2]
[426069387,1782136247000,-709.441,0.00022602,2]
[426069389,1782136247000,-500.0,0.00022641,2]
[426069391,1782136247000,-500.0,0.00022641,2]
[426069395,1782136247000,-500.0,0.00022641,2]
[426069394,1782136247000,-500.0,0.00022641,2]
[426069397,1782136247000,-791.0,0.00022651,10]
[426069399,1782136247000,-213.667588,0.00022666,14]
[426069393,1782136247000,-505.3,0.00022641,2]
[426069396,1782136247000,-1000.0,0.00022651,10]
[426069400,1782136247000,-699.45621205,0.00022667,7]
[426069411,1782136247000,-500.0,0.00022693,2]
[426069406,1782136247000,-500.0,0.00022693,2]
[426069409,1782136247000,-1000.0,0.00022693,2]
[426069426,1782136247000,-155.0,0.00022873,120]
[426069419,1782136247000,-665.33049,0.00022857,14]
[426069428,1782136247000,-156.0,0.00022896,120]
[426069445,1782136247000,-500.0,0.00021459,2]
[426069450,1782136247000,-591.05824486,0.00021596,2]
[426069459,1782136247000,-500.0,0.00022281,2]